bitfinex-derivatives/quotes_BTCF0:USTF0_20250710
["timestamp","ask_amount","ask_price","bid_price","bid_amount"]
[1752139120198,1.20821382,111290.0,111280.0,0.46719436]
[1752139121006,1.28009382,111290.0,111280.0,0.46719436]
[1752139122804,1.1724659,111290.0,111280.0,0.46719436]
[1752139123204,1.1724659,111290.0,111280.0,0.49719436]
[1752139123905,1.25325037,111290.0,111280.0,0.49719436]
[1752139125706,1.25325037,111290.0,111280.0,0.25725726]
[1752139126004,1.25325037,111290.0,111280.0,0.49719436]
[1752139128304,1.1724659,111290.0,111280.0,0.49719436]
[1752139128703,1.25325037,111290.0,111280.0,0.49719436]
[1752139130903,1.25325037,111290.0,111280.0,0.48061436]
[1752139131098,1.25325037,111290.0,111280.0,0.49574436]
[1752139132509,1.1724659,111290.0,111280.0,0.50627875]
[1752139134908,1.1724659,111290.0,111280.0,0.26634165]
[1752139135113,1.1724659,111290.0,111280.0,0.50627875]
[1752139136314,1.25325037,111290.0,111280.0,0.49574436]
[1752139137215,1.25325037,111290.0,111280.0,0.25580726]
[1752139137404,1.25325037,111290.0,111280.0,0.49574436]
[1752139138318,1.25325037,111290.0,111280.0,0.25580726]
[1752139138614,1.25325037,111290.0,111280.0,0.49574436]
[1752139139006,1.01331327,111290.0,111280.0,0.49574436]
[1752139139206,1.25325037,111290.0,111280.0,0.25580726]
[1752139139511,1.25325037,111290.0,111280.0,0.49574436]
[1752139140017,1.25325037,111290.0,111280.0,0.49574437]
[1752139140918,1.45256837,111290.0,111280.0,0.48061437]
[1752139141116,1.45256837,111290.0,111280.0,0.49574437]
[1752139141920,1.45256837,111290.0,111280.0,0.48169851]
[1752139142129,1.45256837,111290.0,111280.0,0.49574437]
[1752139142821,1.45256837,111290.0,111280.0,0.48061437]
[1752139143015,1.45256837,111290.0,111280.0,0.49574437]
[1752139146925,1.21263127,111290.0,111280.0,0.49574437]
[1752139147222,1.45256837,111290.0,111280.0,0.49574437]
[1752139147821,1.45256837,111290.0,111280.0,0.48169851]
[1752139148130,1.45256837,111290.0,111280.0,0.49574442]
[1752139151630,1.81336837,111290.0,111280.0,0.49574442]
[1752139151927,1.45256837,111290.0,111280.0,0.49574442]
[1752139153625,1.81336837,111290.0,111280.0,0.49576092]
[1752139153832,1.81336837,111290.0,111280.0,0.49576149]
[1752139154034,1.84021182,111290.0,111280.0,0.49576149]
[1752139154727,1.84021182,111290.0,111280.0,0.25582439]
[1752139155031,1.84021182,111290.0,111280.0,0.49576149]
[1752139156632,1.84021182,111290.0,111280.0,0.25582439]
[1752139156829,1.84021182,111290.0,111280.0,0.25582432]
[1752139157929,1.84021182,111290.0,111280.0,0.49576142]
[1752139160938,1.84021182,111290.0,111280.0,0.48063142]
[1752139161237,1.84021182,111290.0,111280.0,0.49648142]
[1752139161640,1.60027472,111290.0,111280.0,0.49648142]
[1752139161841,1.80831182,111290.0,111280.0,0.52828142]
[1752139162137,1.80831182,111290.0,111280.0,0.55216142]
[1752139163936,1.78145363,111290.0,111280.0,0.55216142]
[1752139166744,1.7006839,111290.0,111280.0,0.55216142]
[1752139167043,1.78145504,111290.0,111280.0,0.55216142]
[1752139167243,1.7006839,111290.0,111280.0,0.55216142]
[1752139167443,1.78145568,111290.0,111280.0,0.55216142]
[1752139168143,1.7006839,111290.0,111280.0,0.55216142]
[1752139168442,1.4607468,111290.0,111280.0,0.52828142]
[1752139168642,1.7006839,111290.0,111280.0,0.52828124]
[1752139171044,1.78145801,111290.0,111280.0,0.52828124]
[1752139171848,1.78145801,111290.0,111280.0,0.28834414]
[1752139172146,1.78145801,111290.0,111280.0,0.52828124]
[1752139172445,1.78145801,111290.0,111280.0,0.28834414]
[1752139172645,1.78145801,111290.0,111280.0,0.52828124]
[1752139173148,1.78145801,111290.0,111280.0,0.28834414]
[1752139173645,1.78145801,111290.0,111280.0,0.52828124]
[1752139176049,1.81165801,111290.0,111280.0,0.52828124]
[1752139176952,1.57172091,111290.0,111280.0,0.52828124]
[1752139177155,1.81165801,111290.0,111280.0,0.52828124]
[1752139180051,1.81165801,111290.0,111280.0,0.52828132]
[1752139180556,1.81165801,111290.0,111280.0,0.5282814]
[1752139182656,1.57172091,111290.0,111280.0,0.5282814]
[1752139182858,1.81165801,111290.0,111280.0,0.5282814]
[1752139184559,1.81165801,111290.0,111280.0,0.2883443]
[1752139184857,1.81165801,111290.0,111280.0,0.5282814]
[1752139185959,1.81165801,111290.0,111280.0,0.52828142]
[1752139186261,1.81165801,111290.0,111280.0,0.28834432]
[1752139186457,1.81165801,111290.0,111280.0,0.52828142]
[1752139187062,1.81165801,111290.0,111280.0,0.51131501]
[1752139188061,1.57172091,111290.0,111280.0,0.51131501]
[1752139188265,1.81165801,111290.0,111280.0,0.51131501]
[1752139190864,1.81165801,111290.0,111280.0,0.49546501]
[1752139191065,1.81165801,111290.0,111280.0,0.51145501]
[1752139197564,1.7308839,111290.0,111280.0,0.51145501]
[1752139198270,1.4909468,111290.0,111280.0,0.51145501]
[1752139198570,1.7308839,111290.0,111280.0,0.4974086]
[1752139200972,1.7308839,111290.0,111280.0,0.4814186]
[1752139201273,1.7308839,111290.0,111280.0,0.4974086]
[1752139202874,1.7006839,111290.0,111280.0,0.4974086]
[1752139203074,1.7006839,111290.0,111280.0,0.5204686]
[1752139204274,1.5210351,111290.0,111280.0,0.5204686]
[1752139204471,1.7007027,111290.0,111280.0,0.5204686]
[1752139206279,1.7007027,111290.0,111280.0,0.2805315]
[1752139206480,1.7007027,111290.0,111280.0,0.5204686]
[1752139210586,1.7007027,111290.0,111280.0,0.4814186]
[1752139212687,1.7007027,111290.0,111280.0,0.4974086]
[1752139212886,1.4607656,111290.0,111280.0,0.4974086]
[1752139213086,1.7007027,111290.0,111280.0,0.4974086]
[1752139214791,1.0853027,111290.0,111280.0,0.4974086]
[1752139214991,1.6996227,111290.0,111280.0,0.4974086]
[1752139215792,1.3388227,111290.0,111280.0,0.4974086]
[1752139215992,1.0853027,111290.0,111280.0,0.4974086]
[1752139216290,1.6996227,111290.0,111280.0,0.4974086]
[1752139218393,1.0853027,111290.0,111280.0,0.4974086]
[1752139218593,1.6996227,111290.0,111280.0,0.4974086]
[1752139219890,1.6996227,111290.0,111280.0,0.2574715]
[1752139220093,1.6996227,111290.0,111280.0,0.4974086]
[1752139221006,1.6996227,111290.0,111280.0,0.4977186]
[1752139223699,1.4596856,111290.0,111280.0,0.4977186]
[1752139223995,1.6996227,111290.0,111280.0,0.4977186]
[1752139225396,1.6996227,111290.0,111280.0,0.5223686]
[1752139225692,0.273198,111290.0,111280.0,0.7623057]
[1752139225991,0.901118,111290.0,111280.0,1.1231057]
[1752139226190,0.887438,111290.0,111280.0,1.1231057]
[1752139226787,0.901118,111290.0,111280.0,1.1231057]
[1752139227192,0.887438,111290.0,111280.0,1.1231057]
[1752139227592,0.273198,111290.0,111280.0,1.1231057]
[1752139227897,0.286878,111290.0,111280.0,1.1231057]
[1752139228098,0.4665459,111290.0,111280.0,1.1231057]
[1752139228598,0.4528659,111290.0,111280.0,0.7623057]
[1752139228990,0.4665459,111290.0,111280.0,0.7623057]
[1752139230401,0.706483,111290.0,111280.0,0.7623057]
[1752139231302,0.692803,111290.0,111280.0,0.7213557]
[1752139231494,0.692803,111290.0,111280.0,0.7623057]
[1752139232299,0.706483,111290.0,111280.0,0.7623057]
[1752139232798,0.5131351,111290.0,111280.0,0.7623057]
[1752139233199,0.5268151,111290.0,111280.0,0.7623057]
[1752139233503,0.706483,111290.0,111280.0,0.7623057]
[1752139233702,0.5268151,111290.0,111280.0,0.7623057]
[1752139234805,0.5131351,111290.0,111280.0,0.7213557]
[1752139235005,0.5268151,111290.0,111280.0,0.7623057]
[1752139235304,0.7064831,111290.0,111280.0,0.7623057]
[1752139235705,0.6928031,111290.0,111280.0,0.7623057]
[1752139235901,0.452866,111290.0,111280.0,0.7623057]
[1752139236506,0.466546,111290.0,111280.0,0.7623057]
[1752139237313,0.286878,111290.0,111280.0,0.7623057]
[1752139238208,0.286878,111290.0,111280.0,0.2824315]
[1752139238507,0.827346,111290.0,111280.0,0.7623057]
[1752139238709,0.647678,111290.0,111280.0,0.7623057]
[1752139240410,0.8876151,111290.0,111280.0,0.7623057]
[1752139241004,0.8739351,111290.0,111280.0,0.7460057]
[1752139241207,0.8739351,111290.0,111280.0,0.7623057]
[1752139241410,0.8876151,111290.0,111280.0,0.7623057]
[1752139243113,1.067283,111290.0,111280.0,0.7623057]
[1752139244714,0.8273459,111290.0,111280.0,0.7623057]
[1752139244918,1.067283,111290.0,111280.0,0.2824315]
[1752139245112,1.067283,111290.0,111280.0,0.7623057]
[1752139245309,0.5268151,111290.0,111280.0,0.7623057]
[1752139246720,0.706483,111290.0,111280.0,0.7623057]
[1752139248114,1.067283,111290.0,111280.0,0.7623057]
[1752139248917,1.067283,111290.0,111280.0,0.5223686]
[1752139249318,1.099283,111290.0,111280.0,0.5223686]
[1752139249810,0.738483,111290.0,111280.0,0.5223686]
[1752139250010,1.099283,111290.0,111280.0,0.5223686]
[1752139250521,1.100283,111290.0,111280.0,0.5223686]
[1752139251020,1.086603,111290.0,111280.0,0.5220686]
[1752139251820,1.085603,111290.0,111280.0,0.5220686]
[1752139252021,0.8476659,111290.0,111280.0,0.5220686]
[1752139252222,1.101283,111290.0,111280.0,0.5220686]
[1752139252423,1.087603,111290.0,111280.0,0.5220686]
[1752139253624,1.117703,111290.0,111280.0,0.5220686]
[1752139254325,1.117703,111290.0,111280.0,0.2821315]
[1752139254518,1.117703,111290.0,111280.0,0.5220686]
[1752139256626,1.117703,111290.0,111280.0,0.4814186]
[1752139258725,1.117703,111290.0,111280.0,0.5220686]
[1752139260229,0.756903,111290.0,111280.0,0.5220686]
[1752139260422,1.117703,111290.0,111280.0,0.5220686]
[1752139262339,0.756903,111290.0,111280.0,0.5220686]
[1752139262538,1.131383,111290.0,111280.0,0.5220686]
[1752139262741,1.117703,111290.0,111280.0,0.5220686]
[1752139263238,0.756903,111290.0,111280.0,0.5220686]
[1752139263438,0.9380351,111290.0,111280.0,0.5220686]
[1752139263638,0.9517151,111290.0,111280.0,0.5220686]
[1752139264539,1.1313826,111290.0,111280.0,0.5220686]
[1752139265739,1.1313826,111290.0,111280.0,0.7620057]
[1752139265939,1.1313826,111290.0,111280.0,0.5220686]
[1752139268845,0.7705826,111290.0,111280.0,0.5220686]
[1752139269037,1.1313826,111290.0,111280.0,0.5220686]
[1752139269233,0.7705826,111290.0,111280.0,0.5220686]
[1752139269438,1.1313826,111290.0,111280.0,0.5220686]
[1752139271048,1.1177026,111290.0,111280.0,0.5220686]
[1752139272148,0.7569026,111290.0,111280.0,0.5220686]
[1752139272447,0.7705826,111290.0,111280.0,0.5220686]
[1752139274650,0.7569026,111290.0,111280.0,0.4814186]
[1752139274846,0.5772351,111290.0,111280.0,0.4814186]
[1752139275042,0.7569027,111290.0,111280.0,0.4814186]
[1752139275349,0.307198,111290.0,111280.0,0.4814186]
[1752139275646,0.5471351,111290.0,111280.0,0.4814186]
[1752139275846,0.5471351,111290.0,111280.0,0.8422186]
[1752139276038,0.5471351,111290.0,111280.0,0.4814186]
[1752139276238,0.307198,111290.0,111280.0,0.2414815]
[1752139276441,0.5471351,111290.0,111280.0,0.4814186]
[1752139276648,0.5471351,111290.0,111280.0,0.5201586]
[1752139276848,0.5608151,111290.0,111280.0,0.5201586]
[1752139277048,0.5608151,111290.0,111280.0,0.7600957]
[1752139279045,0.5608151,111290.0,111280.0,1.1208957]
[1752139279249,0.5608151,111290.0,111280.0,0.5201586]
[1752139279752,0.5471351,111290.0,111280.0,0.4814186]
[1752139279953,0.5608151,111290.0,111280.0,0.5201586]
[1752139280144,0.5608151,111290.0,111280.0,0.8809586]
[1752139280952,0.5471351,111290.0,111280.0,0.8422186]
[1752139281147,0.5608151,111290.0,111280.0,0.5201586]
[1752139281453,0.5608151,111290.0,111280.0,0.7600957]
[1752139283958,0.5608151,111290.0,111280.0,0.5201586]
[1752139284250,0.320878,111290.0,111280.0,0.8809586]
[1752139284555,0.5608151,111290.0,111280.0,0.5201586]
[1752139284757,0.320878,111290.0,111280.0,0.2802215]
[1752139284960,0.5608151,111290.0,111280.0,0.5201586]
[1752139285459,0.320878,111290.0,111280.0,0.5201586]
[1752139285654,0.5608151,111290.0,111280.0,0.5201586]
[1752139288662,0.5471351,111290.0,111280.0,0.4814186]
[1752139290762,0.5608151,111290.0,111280.0,0.5201586]
[1752139290959,0.5471351,111290.0,111280.0,0.5201586]
[1752139291158,0.5608151,111290.0,111280.0,0.5201586]
[1752139291658,0.7404828,111290.0,111280.0,0.5201586]
[1752139293867,0.7268028,111290.0,111280.0,0.2414815]
[1752139294162,0.7404828,111290.0,111280.0,0.5201586]
[1752139294464,0.5005457,111290.0,111280.0,0.5201586]
[1752139294664,0.7404828,111290.0,111280.0,0.5201586]
[1752139296065,0.7404828,111290.0,111280.0,0.2802215]
[1752139296363,0.7404828,111290.0,111280.0,0.5201586]
[1752139296666,0.5608151,111290.0,111280.0,0.5201586]
[1752139297367,0.5471351,111290.0,111280.0,0.4814186]
[1752139297567,0.5608151,111290.0,111280.0,0.5201586]
[1752139299769,0.7404828,111290.0,111280.0,0.5201586]
[1752139300262,0.1796838,111280.0,111270.0,0.2029207]
[1752139300463,1.71477581,111280.0,111270.0,0.1796907]
[1752139300965,1.23490161,111280.0,111270.0,0.1796907]
[1752139301161,1.72332581,111280.0,111270.0,0.1796907]
[1752139302470,1.72632581,111280.0,111270.0,0.1796907]
[1752139302867,1.79821581,111280.0,111270.0,0.1796907]
[1752139303167,1.80121581,111280.0,111270.0,0.1796907]
[1752139305271,2.00053381,111280.0,111270.0,0.1796907]
[1752139310960,1.99198381,111280.0,111270.0,0.1796907]
[1752139313773,2.00053381,111280.0,111270.0,0.1796907]
[1752139314373,1.99198381,111280.0,111270.0,0.1796907]
[1752139314569,0.1796986,111270.0,111260.0,0.179701]
[1752139314867,0.8423357,111270.0,111260.0,0.179701]
[1752139315071,0.8423357,111270.0,111250.0,0.8207406]
[1752139315072,0.1797147,111260.0,111250.0,0.7155917]
[1752139315376,1.0951118,111260.0,111250.0,0.7309317]
[1752139315569,1.0951118,111260.0,111250.0,0.9708688]
[1752139316076,1.4559118,111260.0,111250.0,0.6100688]
[1752139316967,1.4559118,111260.0,111250.0,0.5780688]
[1752139317176,1.47498895,111260.0,111250.0,0.5780688]
[1752139317364,1.48379636,111260.0,111250.0,0.5780688]
[1752139318071,1.48579636,111260.0,111250.0,0.5780688]
[1752139318471,1.48579636,111260.0,111250.0,0.5479688]
[1752139318970,1.48779636,111260.0,111250.0,0.5479688]
[1752139320077,1.48779636,111260.0,111250.0,0.5248588]
[1752139320278,1.68711436,111260.0,111250.0,0.5248588]
[1752139320882,1.68711436,111260.0,111250.0,0.5095188]
[1752139321078,1.68711436,111260.0,111250.0,0.5248588]
[1752139322181,1.68711436,111260.0,111250.0,0.2849217]
[1752139322482,1.68711436,111260.0,111250.0,0.2399905]
[1752139322680,1.68711436,111260.0,111250.0,0.4799276]
[1752139323281,1.68711436,111260.0,111250.0,0.2399905]
[1752139323479,1.92705146,111260.0,111250.0,0.2399905]
[1752139324480,1.68711436,111260.0,111250.0,0.2246505]
[1752139324680,1.92705146,111260.0,111250.0,0.2246505]
[1752139325069,0.1797304,111250.0,111240.0,0.37551809]
[1752139325274,0.4333475,111250.0,111240.0,0.63079519]
[1752139325488,0.7941475,111250.0,111240.0,0.63079519]
[1752139326788,0.7941475,111250.0,111240.0,0.39085809]
[1752139326990,0.7941475,111250.0,111240.0,0.63079519]
[1752139327190,0.7941475,111250.0,111240.0,0.39085809]
[1752139327489,0.7941475,111250.0,111240.0,0.63079519]
[1752139327890,0.7961475,111250.0,111240.0,0.63079519]
[1752139328293,0.7981475,111250.0,111240.0,0.63079519]
[1752139330188,0.9974655,111250.0,111240.0,0.39085809]
[1752139330387,0.9974655,111250.0,111240.0,0.63079519]
[1752139330888,0.9837855,111250.0,111240.0,0.59234519]
[1752139331193,0.9974655,111250.0,111240.0,0.63079519]
[1752139331893,0.9974655,111250.0,111240.0,0.39085809]
[1752139332593,1.0280655,111250.0,111240.0,0.39085809]
[1752139333190,1.0280655,111250.0,111240.0,0.34592279]
[1752139333487,1.0280655,111250.0,111240.0,0.30098759]
[1752139333693,1.0589655,111250.0,111240.0,0.30098759]
[1752139334294,1.13000506,111250.0,111240.0,0.30098759]
[1752139334594,1.13000506,111250.0,111240.0,0.27008759]
[1752139335494,1.11632506,111250.0,111240.0,0.23163759]
[1752139339100,1.11632506,111250.0,111240.0,0.19883759]
[1752139339690,1.0452855,111250.0,111240.0,0.19883759]
[1752139342001,0.8053484,111250.0,111240.0,0.19883759]
[1752139342197,1.0589655,111250.0,111240.0,0.19883759]
[1752139342900,1.0452855,111250.0,111240.0,0.19883759]
[1752139343100,1.0452855,111250.0,111240.0,0.21404759]
[1752139343301,1.0452855,111250.0,111240.0,0.45398469]
[1752139343899,1.11774748,111250.0,111240.0,0.45398469]
[1752139345005,1.11774748,111250.0,111240.0,0.21404759]
[1752139346203,1.11774748,111250.0,111240.0,0.45398469]
[1752139346501,1.18965748,111250.0,111240.0,0.45398469]
[1752139347398,1.18965748,111250.0,111240.0,0.21404759]
[1752139347602,1.18965748,111250.0,111240.0,0.03431459]
[1752139347803,1.18965748,111250.0,111240.0,0.21406099]
[1752139351006,1.18965748,111250.0,111240.0,0.01910459]
[1752139351409,0.94972038,111250.0,111240.0,0.01910459]
[1752139351706,1.20333748,111250.0,111240.0,0.01910459]
[1752139354509,1.21188748,111250.0,111240.0,0.01910459]
[1752139355207,1.45182458,111250.0,111240.0,0.00179783]
[1752139355413,0.1797464,111240.0,111230.0,0.2126606]
[1752139355612,1.72957851,111240.0,111230.0,0.2126606]
[1752139355813,1.71589851,111240.0,111230.0,0.2126606]
[1752139358416,1.71589851,111240.0,111230.0,0.1815606]
[1752139360317,1.91521651,111240.0,111230.0,0.1815606]
[1752139362017,1.43534231,111240.0,111230.0,0.1815606]
[1752139362316,1.91521651,111240.0,111230.0,0.1815606]
[1752139364712,1.67527941,111240.0,111230.0,0.1815606]
[1752139364918,1.91521651,111240.0,111230.0,0.1815606]
[1752139368623,1.91521651,111240.0,111230.0,0.001798]
[1752139368826,1.43534231,111240.0,111230.0,0.001798]
[1752139369024,1.91521651,111240.0,111230.0,0.001798]
[1752139369426,1.43534231,111240.0,111230.0,0.1815605]
[1752139369625,1.91521651,111240.0,111230.0,0.1815605]
[1752139371226,1.91521651,111240.0,111230.0,0.1967505]
[1752139374130,1.43534231,111240.0,111230.0,0.1967505]
[1752139374430,1.91521651,111240.0,111230.0,0.1967505]
[1752139377132,1.91521651,111240.0,111230.0,0.016988]
[1752139378632,1.91521651,111240.0,111230.0,0.1967505]
[1752139378933,1.91521651,111240.0,111230.0,0.016988]
[1752139379236,1.43534231,111240.0,111230.0,0.016988]
[1752139379429,1.91521651,111240.0,111230.0,0.016988]
[1752139379729,1.91521651,111240.0,111230.0,0.1967505]
[1752139380434,1.91521651,111240.0,111230.0,0.016988]
[1752139380935,1.91521651,111240.0,111230.0,0.001798]
[1752139383135,1.43534231,111240.0,111230.0,0.001798]
[1752139383436,1.91521651,111240.0,111230.0,0.001798]
[1752139386242,1.92376651,111240.0,111230.0,0.001798]
[1752139390436,1.44389231,111240.0,111230.0,0.001798]
[1752139390739,1.92376651,111240.0,111230.0,0.001798]
[1752139390937,1.91521651,111240.0,111230.0,0.001798]
[1752139391139,1.92376651,111240.0,111230.0,0.001798]
[1752139394339,1.92376651,111240.0,111230.0,0.1815605]
[1752139395736,1.91521651,111240.0,111230.0,0.1815605]
[1752139397159,1.43534231,111240.0,111230.0,0.1815605]
[1752139397454,1.91521651,111240.0,111230.0,0.1815605]
[1752139398155,1.43534231,111240.0,111230.0,0.1815605]
[1752139398455,1.91521651,111240.0,111230.0,0.1815605]
[1752139399255,1.91521651,111240.0,111230.0,0.001798]
[1752139402558,1.43534231,111240.0,111230.0,0.001798]
[1752139402757,1.91521651,111240.0,111230.0,0.001798]
[1752139403660,1.43534231,111240.0,111230.0,0.001798]
[1752139403956,1.91521651,111240.0,111230.0,0.001798]
[1752139404157,1.43534231,111240.0,111230.0,0.001798]
[1752139404457,1.91521651,111240.0,111230.0,0.001798]
[1752139404857,1.55441651,111240.0,111230.0,0.001798]
[1752139405058,1.91521651,111240.0,111230.0,0.001798]
[1752139406561,1.91597651,111240.0,111230.0,0.001798]
[1752139407156,1.43610231,111240.0,111230.0,0.001798]
[1752139407351,1.67595941,111240.0,111230.0,0.001798]
[1752139407653,0.24348489,111220.0,111210.0,0.4646801]
[1752139407859,1.11126199,111220.0,111210.0,0.5199215]
[1752139408054,1.11126199,111220.0,111210.0,0.3401271]
[1752139408254,1.11126199,111220.0,111210.0,0.519922]
[1752139408660,1.47206199,111220.0,111210.0,0.519922]
[1752139408958,1.47206199,111220.0,111210.0,0.3401271]
[1752139409254,1.71199909,111220.0,111210.0,0.3451271]
[1752139409460,1.47206199,111220.0,111210.0,0.3451271]
[1752139409862,1.48123811,111220.0,111210.0,0.5249219]
[1752139410165,1.68055611,111220.0,111210.0,0.3451271]
[1752139410962,1.66687611,111220.0,111210.0,0.3222571]
[1752139411564,1.66687611,111220.0,111210.0,0.5020519]
[1752139412064,1.42693901,111220.0,111210.0,0.5020519]
[1752139412363,1.66687611,111220.0,111210.0,0.5020519]
[1752139413264,1.66687611,111220.0,111210.0,0.2621148]
[1752139413465,1.66687611,111220.0,111210.0,0.5020519]
[1752139414362,1.66687611,111220.0,111210.0,0.2621148]
[1752139414662,1.66687611,111220.0,111210.0,0.5020519]
[1752139415961,1.66687611,111220.0,111210.0,0.2621148]
[1752139416264,1.66687611,111220.0,111210.0,0.5020519]
[1752139419066,1.41776289,111220.0,111210.0,0.5020519]
[1752139419263,1.65769999,111220.0,111210.0,0.5020519]
[1752139419769,1.72962999,111220.0,111210.0,0.5020519]
[1752139421270,1.72962999,111220.0,111210.0,0.4864319]
[1752139421470,1.72962999,111220.0,111210.0,0.5020519]
[1752139423372,1.48969289,111220.0,111210.0,0.5020519]
[1752139423669,1.73886413,111220.0,111210.0,0.5020519]
[1752139425461,1.37806413,111220.0,111210.0,0.5020519]
[1752139425771,1.36886999,111220.0,111210.0,0.5249219]
[1752139425968,1.36886999,111220.0,111210.0,0.5020519]
[1752139428475,1.12893289,111220.0,111210.0,0.5020519]
[1752139428775,1.36886999,111220.0,111210.0,0.5020519]
[1752139430376,1.12893289,111220.0,111210.0,0.5020519]
[1752139430577,1.36886999,111220.0,111210.0,0.5254019]
[1752139430879,1.36886999,111220.0,111210.0,0.4864319]
[1752139431078,1.36886999,111220.0,111210.0,0.5022119]
[1752139432081,1.36886999,111220.0,111210.0,0.2622748]
[1752139432279,1.72966999,111220.0,111210.0,0.5022119]
[1752139433077,1.96960709,111220.0,111210.0,0.2005749]
[1752139433382,2.03130709,111220.0,111210.0,0.440512]
[1752139434282,1.67050709,111220.0,111210.0,0.440512]
[1752139435079,1.67050709,111220.0,111210.0,0.2005749]
[1752139435286,1.67050709,111220.0,111210.0,0.440512]
[1752139435481,2.03130709,111220.0,111210.0,0.440512]
[1752139436788,2.03130709,111220.0,111210.0,0.2005749]
[1752139436987,2.03130709,111220.0,111210.0,0.440512]
[1752139437989,2.03130709,111220.0,111210.0,0.2005749]
[1752139438187,2.03130709,111220.0,111210.0,0.440512]
[1752139438990,2.03130709,111220.0,111210.0,0.2005749]
[1752139439185,2.03130709,111220.0,111210.0,0.440512]
[1752139440286,2.03130709,111220.0,111210.0,0.1847949]
[1752139440590,2.03130709,111220.0,111210.0,0.424732]
[1752139440591,2.03985709,111220.0,111210.0,0.424732]
[1752139440996,2.03130709,111220.0,111210.0,0.1847949]
[1752139445297,1.55143289,111220.0,111210.0,0.1847949]
[1752139445501,1.55143289,111220.0,111210.0,0.440512]
[1752139445790,2.03985709,111220.0,111210.0,0.1847949]
[1752139445996,2.03985709,111220.0,111210.0,0.1847948]
[1752139446691,2.03985709,111220.0,111210.0,0.005]
[1752139448699,0.1797948,111210.0,111200.0,0.18160788]
[1752139448996,0.8661619,111210.0,111200.0,0.18160788]
[1752139450294,1.0654799,111210.0,111200.0,0.18460788]
[1752139450601,1.0654799,111210.0,111200.0,0.18660788]
[1752139450802,1.7512099,111210.0,111200.0,0.18660788]
[1752139450995,1.7375299,111210.0,111200.0,0.18660788]
[1752139456605,1.7289799,111210.0,111200.0,0.18660788]
[1752139458710,1.7375299,111210.0,111200.0,0.18660788]
[1752139459214,1.7289799,111210.0,111200.0,0.18660788]
[1752139460410,1.7289799,111210.0,111200.0,0.42654498]
[1752139461013,1.7288599,111210.0,111200.0,0.42654498]
[1752139462413,1.4889228,111210.0,111200.0,0.42654498]
[1752139462713,1.7288599,111210.0,111200.0,0.42654498]
[1752139463312,1.7288599,111210.0,111200.0,0.18660788]
[1752139467212,1.7288599,111210.0,111200.0,0.00679848]
[1752139469112,1.7374099,111210.0,111200.0,0.00679848]
[1752139470408,1.7288599,111210.0,111200.0,0.00679848]
[1752139471713,1.7374099,111210.0,111200.0,0.00679848]
[1752139476224,1.7374099,111210.0,111200.0,0.00679848]
[1752139476424,1.81798196,111210.0,111200.0,0.00679848]
[1752139476823,1.81798196,111210.0,111200.0,0.00686712]
[1752139477324,1.7374099,111210.0,111200.0,0.00686712]
[1752139477923,1.4974728,111210.0,111200.0,0.00686712]
[1752139478120,1.7374099,111210.0,111200.0,0.00686712]
[1752139484224,1.81802163,111210.0,111200.0,0.00686712]
[1752139486424,1.45722163,111210.0,111200.0,0.00686712]
[1752139486619,1.81802163,111210.0,111200.0,0.00686712]
[1752139487021,1.57804453,111210.0,111200.0,0.18667812]
[1752139487325,1.80943163,111210.0,111200.0,0.18667812]
[1752139488126,1.80943163,111210.0,111200.0,0.00686712]
[1752139488627,1.81798163,111210.0,111200.0,0.00686712]
[1752139489023,1.80943163,111210.0,111200.0,0.00686712]
[1752139489628,1.7288199,111210.0,111200.0,0.00686712]
[1752139489829,1.7373699,111210.0,111200.0,0.00686712]
[1752139490029,1.81798163,111210.0,111200.0,0.00686712]
[1752139491430,1.16399163,111210.0,111200.0,0.26332422]
[1752139491629,1.74603163,111210.0,111200.0,0.47623522]
[1752139491829,1.74603163,111210.0,111200.0,0.50763522]
[1752139492330,1.4254828,111210.0,111200.0,0.77078232]
[1752139492933,1.4254828,111210.0,111200.0,0.29090812]
[1752139493134,1.6654199,111210.0,111200.0,0.77078232]
[1752139493531,1.74603163,111210.0,111200.0,0.77078232]
[1752139494236,1.6654199,111210.0,111200.0,0.77078232]
[1752139494637,1.0517799,111210.0,111200.0,0.77078232]
[1752139494935,1.4254828,111210.0,111200.0,0.77078232]
[1752139496737,1.6654199,111210.0,111200.0,0.77078232]
[1752139499338,1.4254828,111210.0,111200.0,0.77078232]
[1752139500138,1.6654199,111210.0,111200.0,0.77078232]
[1752139501942,1.0517799,111210.0,111200.0,0.77078232]
[1752139502239,1.6653799,111210.0,111200.0,0.77078232]
[1752139502641,0.8118428,111210.0,111200.0,0.77078232]
[1752139502940,1.0783228,111210.0,111200.0,0.77078232]
[1752139503343,1.0646428,111210.0,111200.0,0.73105232]
[1752139503542,1.0646428,111210.0,111200.0,0.77078232]
[1752139506447,0.4510428,111210.0,111200.0,0.77078232]
[1752139506635,1.0646428,111210.0,111200.0,0.77078232]
[1752139512248,0.4510428,111210.0,111200.0,0.77078232]
[1752139512548,1.0646428,111210.0,111200.0,0.77078232]
[1752139514245,1.14520523,111210.0,111200.0,0.77078232]
[1752139514943,0.53160523,111210.0,111200.0,0.77078232]
[1752139515251,1.14520523,111210.0,111200.0,0.77078232]
[1752139515545,0.35181043,111210.0,111200.0,0.77078232]
[1752139515745,0.271248,111210.0,111200.0,1.37151942]
[1752139515944,0.271248,111210.0,111200.0,1.60530006]
[1752139516350,0.08429708,111210.0,111200.0,1.60530006]
[1752139518047,0.08429708,111210.0,111200.0,1.36536296]
[1752139518549,0.08429708,111210.0,111200.0,1.67705442]
[1752139518750,0.08429708,111210.0,111200.0,1.49720642]
[1752139520250,0.08429708,111210.0,111200.0,1.85800642]
[1752139521052,0.08429708,111210.0,111200.0,1.84145642]
[1752139523654,0.08429708,111210.0,111200.0,1.78752378]
[1752139525559,0.08429708,111210.0,111200.0,2.02746088]
[1752139530867,0.08429708,111210.0,111200.0,2.00428088]
[1752139531062,0.08429708,111210.0,111200.0,2.06584358]
[1752139531264,0.08429708,111210.0,111200.0,1.82590648]
[1752139534286,0.08429708,111210.0,111200.0,1.96073808]
[1752139534784,0.08429708,111210.0,111200.0,1.96063044]
[1752139539684,0.08429708,111210.0,111200.0,1.9066978]
[1752139540983,0.08429708,111210.0,111200.0,1.8835178]
[1752139541183,0.08429708,111210.0,111200.0,1.9066978]
[1752139543575,0.08429708,111210.0,111200.0,2.5201378]
[1752139543778,0.08429708,111210.0,111200.0,2.50608423]
[1752139543983,0.08429708,111210.0,111200.0,2.52013807]
[1752139544485,0.11749708,111210.0,111200.0,2.52013807]
[1752139547284,0.29729188,111210.0,111200.0,1.95254387]
[1752139547489,0.34357188,111210.0,111200.0,2.45506807]
[1752139547888,0.34357188,111210.0,111200.0,2.16046807]
[1752139549087,0.58350898,111210.0,111200.0,0.70639387]
[1752139549290,0.58350898,111210.0,111200.0,0.2959942]
[1752139549494,0.58350898,111210.0,111200.0,0.47144184]
[1752139549689,0.34357188,111210.0,111200.0,0.48691184]
[1752139549890,0.58350898,111210.0,111200.0,0.48691184]
[1752139550494,0.58350898,111210.0,111200.0,0.72684894]
[1752139550690,0.34357188,111210.0,111200.0,0.72684894]